Cogmind - Beta 16 *** ADVENTURER MODE // 2025.12.11 @ 15:36:11 Player: Roach K Result: Self-destructed Performance ------------- Evolutions (1) 500 Regions Visited (3) 600 Robots Destroyed (27) 135 Value Destroyed (559) 559 Prototype IDs (1) 20 Alien Tech Used (0) 0 Bonus (33) 33 TOTAL SCORE: 1847 Bonus ------- Follower Combat Kills 33 Cogmind --------- Core Integrity 338/400 Matter 300/300 Energy 131/250 System Corruption 1% Temperature Cool (0) Movement Flying (104) Ox1 Location -9/Materials Parts ------- > --- POWER (1) -------- Ion Engine > --- PROPULSION (4) --- Improved Flight Unit Faulty Improved Flight Unit Improved Flight Unit Improved Flight Unit > --- UTILITY (2) ------ Improved Heat Sink Medium Storage Unit > --- WEAPON (2) ------- Light EM Pulse Cannon Rocket Launcher > --- INVENTORY (10) --- Light Ion Engine Light Nuclear Core Light Nuclear Core Aluminum Leg Aluminum Leg Aluminum Leg Aluminum Leg Small Storage Unit Light Armor Plating Light EM Pulse Cannon Peak State ------------ > --- POWER ------------ Ion Engine > --- PROPULSION ------- Improved Flight Unit Improved Flight Unit Improved Flight Unit Improved Flight Unit > --- UTILITY ---------- Improved Heat Sink Medium Storage Unit > --- WEAPON ----------- Light EM Pulse Cannon Rocket Launcher > --- INVENTORY -------- Light Ion Engine Light Nuclear Core Light Nuclear Core Aluminum Leg Aluminum Leg Aluminum Leg Aluminum Leg Small Storage Unit Light Armor Plating Light EM Pulse Cannon [Rating: 22] Favorites ----------- Power Ion Engine Engine Ion Engine Propulsion Aluminum Leg Leg Aluminum Leg Flight Unit Improved Flight Unit Utility Improved Heat Sink Device Improved Heat Sink Storage Small Storage Unit Weapon Light EM Pulse Cannon Energy Cannon Light EM Pulse Cannon Ballistic Gun Assault Rifle Launcher Rocket Launcher Special Melee Weapon Datajack Build | -11 -10 -10 -9 ------- Run | Yrd Mat Min Mat Slots Evolved 2 | . . . 2 Power . | . . . . Propulsion 2 | . . . 2 Utility . | . . . . Weapon . | . . . . Parts Attached 20 | 7 4 1 8 Power 2 | 2 . . . Engine 2 | 2 . . . Core . | . . . . Reactor . | . . . . Propulsion 8 | 2 . . 6 Treads . | . . . . Leg 4 | 2 . . 2 Wheel . | . . . . Hover . | . . . . Flight 4 | . . . 4 Utility 4 | 1 1 . 2 Device 2 | . 1 . 1 Storage 2 | 1 . . 1 Processor . | . . . . Hackware . | . . . . Protection . | . . . . Artifact . | . . . . Weapon 6 | 2 3 1 . Energy Gun . | . . . . Energy Cannon 2 | . 2 . . Ballistic Gun 2 | 2 . . . Ballistic Cannon . | . . . . Launcher 1 | . . 1 . Special Weapon . | . . . . Impact Weapon . | . . . . Slashing Weapon . | . . . . Piercing Weapon . | . . . . Special Melee Weapon 1 | . 1 . . Unidentified Prototypes 1 | . . . 1 Parts Lost . | . . . . Power . | . . . . Propulsion . | . . . . Utility . | . . . . Weapon . | . . . . Highest Loss Streak . | . . . . To Critical Strikes . | . . . . Average Backups 6 | . 5 8 9 Power 2 | . 1 2 2 Propulsion 2 | . 1 3 3 Utility 1 | . . 1 1 Weapon . | . . 1 1 Tool/Special . | . . . . Unused Backups 9 | . 1 . 8 Power 2 | . . . 2 Propulsion 5 | . 1 . 4 Utility 1 | . . . 1 Weapon 1 | . . . 1 Tool/Special . | . . . . Average Slot Usage (%) 96 | . 94 100 97 Engine 12 | . 14 14 11 Leg 32 | . 28 28 40 Device 10 | . 8 14 11 Storage 12 | . 14 14 11 Energy Cannon 16 | . 16 27 11 Ballistic Gun 4 | . 10 . . Launcher 4 | . . . 11 Peak Build Rating 22 | 6 12 12 22 Average Rating 11 | 5 9 11 14 On Entrance 7 | . 6 12 12 Avg Prop Armor Cover (%) . | . . . . Naked Turns . | . . . . Heaviest Build 24 | 13 19 19 24 Greatest Support 40 | 20 20 20 40 Greatest Overweight (x) 7 | 1 . . 7 Average Overweight (x) . | . . . . Largest Inventory Capacity 10 | 8 8 8 10 Average Capacity 8 | 7 8 8 9 Most Carried 10 | 1 8 8 10 Average Carried 6 | . 5 8 9 Final Capacity 10 | 8 8 8 10 Final Carried 10 | 1 8 8 10 Class Distribution -------------------- 100% | Mutant Dominant Class ---------------- Mutant | -10/Materials Mutant | -10/Mines Mutant | -9/Materials Resources | -11 -10 -10 -9 ----------- Run | Yrd Mat Min Mat Matter Collected 522 | 262 123 . 137 Remotely . | . . . . Salvage Created 786 | . 358 51 377 Parts 60 | . 22 5 33 Haulers Intercepted 2 | . 1 . 1 Recyclers Shooed 1 | . 1 . . Parts Field Recycled . | . . . . Retrieved Matter . | . . . . Parts Self-Destructed . | . . . . Prevented . | . . . . Parts Restored . | . . . . Kills | -11 -10 -10 -9 ------- Run | Yrd Mat Min Mat Combat Hostiles Destroyed 21 | . 8 3 10 Guns 5 | . 5 . . Cannons 13 | . 3 2 8 AOE 3 | . . 1 2 Classes Destroyed 6 | . 4 . 2 Builder 1 | . . . 1 Hauler 2 | . 1 . 1 Watcher 3 | . 1 . 2 Swarmer 12 | . 3 3 6 Grunt 8 | . 5 . 3 Duelist 1 | . . . 1 Best Kill Streak 6 | . 5 3 6 Combat Bots Only 5 | . 4 3 5 Max Kills in Single Turn 3 | . 1 1 3 Gunslinging . | . . . . Exploded 2 | . . 1 2 Melee . | . . . . Uniques/NPCs Destroyed . | . . . . Combat | -11 -10 -10 -9 -------- Run | Yrd Mat Min Mat Hostile Shots Fired 83 | . 26 18 39 Missed 28 | . 9 3 16 Hits 55 | . 17 15 23 Projectile 55 | . 17 15 23 Damage Taken 478 | . 185 101 192 Core 101 | . 17 22 62 Absorbed by Shields . | . . . . Ignored by Resistances 153 | . 56 35 62 Core Remaining (%) 92 | 100 . 84 . Volleys Fired 57 | . 24 5 28 Largest 2 | . 2 2 2 Hottest 112 | . 112 112 89 Shots Fired 87 | . 45 10 32 Gun 31 | . 31 . . Cannon 52 | . 14 10 28 Launcher 4 | . . . 4 Special . | . . . . Kinetic 31 | . 31 . . Thermal . | . . . . Explosive 4 | . . . 4 Electromagnetic 52 | . 14 10 28 Robot Hit Streak 17 | . 12 15 17 Robot Miss Streak 2 | . 2 . 1 Penetration Max . | . . . . Secondary Targets . | . . . . Shots Hit Robots 71 | . 35 8 28 Core Hits 38 | . 16 3 19 Critical Kills . | . . . . Critical Parts Destroyed 1 | . 1 . . Critical Strikes 1 | . 1 . . Destroy 1 | . 1 . . Melee Attacks 1 | . 1 . . Impact . | . . . . Slashing . | . . . . Piercing . | . . . . Sneak Attacks . | . . . . Combat Hostiles . | . . . . Follow-up Attacks . | . . . . Damage Inflicted 1698 | . 574 183 941 Guns 219 | . 219 . . Cannons 1010 | . 282 138 590 Explosions 454 | . 70 43 341 Melee . | . . . . Ramming 15 | . 3 2 10 Kinetic 219 | . 219 . . Thermal 201 | . 70 43 88 Explosive 253 | . . . 253 Electromagnetic 1010 | . 282 138 590 Impact . | . . . . Slashing . | . . . . Piercing . | . . . . Highest Corruption 1 | . . . 1 Average Corruption 1 | . . . 1 Corruption Purged . | . . . . Corruption Blocked . | . . . . Overload Shots . | . . . . Overflow Damage 28 | . . . 28 Projectiles 8 | . . . 8 Explosions 20 | . . . 20 Melee . | . . . . Knockbacks . | . . . . Impact . | . . . . Kinetic . | . . . . Secondary . | . . . . Self-Inflicted Damage 87 | . 30 19 38 Shots 4 | . 1 1 2 Rammed 2 | . . . 2 Targets Rammed 5 | . 1 1 3 Kicked 3 | . 1 1 1 Crushed . | . . . . Highest Temperature 42 | . 42 36 3 Average Temperature 17 | . 17 18 3 Received Heat Transfer 129 | . 87 . 42 Siege Activations . | . . . . Martial Activations . | . . . . Shielding Activations . | . . . . Robots Disrupted . | . . . . Combat Hostiles . | . . . . Robots Corrupted 1 | . . . 1 Combat Hostiles . | . . . . Parts Fried 4 | . 1 2 1 Impact Corruptions . | . . . . Robots Melted . | . . . . Combat Hostiles . | . . . . Parts Melted . | . . . . Heat Transferred 300 | . 100 50 150 Parts Sabotaged . | . . . . Parts Stolen . | . . . . Parts Stripped . | . . . . Power Chain Reactions 4 | . 1 1 2 Alert | -11 -10 -10 -9 ------- Run | Yrd Mat Min Mat Maximum Alert Level . | . . . . Low Security (%) 100 | 100 100 100 100 Level 1 . | . . . . Level 2 . | . . . . Level 3 . | . . . . Level 4 . | . . . . Level 5 . | . . . . High Security . | . . . . Max Security . | . . . . Peak Influence 193 | . 156 96 193 Initial 34 | . . 34 4 Average 74 | . 94 57 71 Influence Increases 736 | . 316 72 348 Destroy 0b10 Robot/C 440 | . 160 60 220 Destroy 0b10 Robot/NC 30 | . 10 . 20 Destroy Leader 90 | . 34 10 46 Disable Machine 45 | . 18 . 27 Destroy Structure 41 | . 4 2 35 Lose Combat Pursuer 90 | . 90 . . Influence Decreases 569 | . 210 162 197 Entered New Map 84 | . . 72 12 Time Decay 464 | . 210 90 164 Lost Ally 21 | . . . 21 Squads Dispatched 1 | . 1 . . Investigation 1 | . 1 . . Extermination . | . . . . Reinforcement . | . . . . Assault . | . . . . Garrison . | . . . . Intercept . | . . . . Searches Triggered . | . . . . Construction Impeded . | . . . . Haulers Reinforced . | . . . . Active Scanning Responses . | . . . . Cargo Convoy Interrupts . | . . . . Stealth | -11 -10 -10 -9 --------- Run | Yrd Mat Min Mat Distress Signals 1 | . 1 . . Communications Jammed . | . . . . Distress Signals . | . . . . Times Spotted 30 | . 13 3 14 Peak Tracking Total 5 | . 5 2 5 Tactical Retreats 3 | . 3 . . Traps | -11 -10 -10 -9 ------- Run | Yrd Mat Min Mat Traps Triggered 1 | . 1 . . Indirectly . | . . . . Trap Hack Attempts . | . . . . Triggered . | . . . . Disarmed . | . . . . Reprogrammed . | . . . . Reused . | . . . . Traps Extracted . | . . . . Installed . | . . . . Triggered . | . . . . Machines | -11 -10 -10 -9 ---------- Run | Yrd Mat Min Mat Machines Disabled 5 | . 2 . 3 Max in Single Turn 1 | . 1 . 1 Machines Repaired . | . . . . Machines Dismantled . | . . . . Machines Sabotaged . | . . . . Overloaded Fab Kills . | . . . . Hacking | -11 -10 -10 -9 --------- Run | Yrd Mat Min Mat Machines Accessed . | . . . . Terminals . | . . . . Fabricators . | . . . . Repair Stations . | . . . . Recycling Units . | . . . . Scanalyzers . | . . . . Garrison Access . | . . . . Total Hacks . | . . . . Successful . | . . . . Failed . | . . . . Catastrophic . | . . . . Database Lockouts . | . . . . Manual . | . . . . Terminals . | . . . . Fabricators . | . . . . Repair Stations . | . . . . Recycling Units . | . . . . Scanalyzers . | . . . . Garrison Access . | . . . . Terminal Hacks . | . . . . Fabricator Hacks . | . . . . Repair Station Hacks . | . . . . Recycling Unit Hacks . | . . . . Scanalyzer . | . . . . Garrison Access Hacks . | . . . . Unauthorized Hacks . | . . . . Terminals . | . . . . Fabricators . | . . . . Repair Stations . | . . . . Recycling Units . | . . . . Scanalyzers . | . . . . Garrison Access . | . . . . Data Cores Recovered . | . . . . Used . | . . . . Hacking Detections . | . . . . Full Trace Events . | . . . . Feedback Events . | . . . . Feedback Blocked . | . . . . Robot Schematics Acquired . | . . . . Robots Built . | . . . . Authchips . | . . . . Time . | . . . . Total Robot Build Rating . | . . . . Part Schematics Acquired . | . . . . Parts Built . | . . . . Authchips . | . . . . Time . | . . . . Total Part Build Rating . | . . . . Part Studies Acquired . | . . . . Parts Repaired . | . . . . Time . | . . . . Parts Recycled . | . . . . Recycled Matter . | . . . . Retrieved Matter . | . . . . Retrieved Components . | . . . . Parts Scanalyzed . | . . . . Part Schematics Acquired . | . . . . Parts Damaged . | . . . . Bothacking | -11 -10 -10 -9 ------------ Run | Yrd Mat Min Mat Used RIF Installer . | . . . . Robots Hacked 1 | . 1 . . Non-combat . | . . . . Combat 1 | . 1 . . Robot Hacks Applied 1 | . 1 . . parse_system 1 | . 1 . . Relay Couplers Released . | . . . . Fabnet Peak Effective % . | . . . . Robots Rewired . | . . . . Allies Hacked . | . . . . Hacks Repelled . | . . . . Allies | -11 -10 -10 -9 -------- Run | Yrd Mat Min Mat Total Allies 3 | . . 3 . Largest Group 3 | . . 3 3 Highest-Rated Group 40 | . . 40 40 Highest-Rated Ally 16 | . . 16 16 Total Orders . | . . . . Ally Attacks 12 | . . . 12 Total Damage 81 | . . . 81 Kills 1 | . . . 1 Allies Corrupted . | . . . . Allies Melted . | . . . . Intel | -11 -10 -10 -9 ------- Run | Yrd Mat Min Mat Active Infowar (turns) . | . . . . Robot Analysis Total . | . . . . Derelict Logs Recovered . | . . . . Drone Launches . | . . . . Drone Recoveries . | . . . . Exploration | -11 -10 -10 -9 ------------- Run | Yrd Mat Min Mat Turns Passed 1129 | 63 491 195 380 Spaces Moved 654 | 47 299 103 205 Core 10 | 8 . . 2 Treads . | . . . . Legs 641 | 39 299 103 200 Wheels . | . . . . Hover . | . . . . Flight 3 | . . . 3 Fastest Speed 50 | 50 120 120 104 Average Speed 120 | 113 120 120 123 Slowest Speed 400 | 120 120 120 400 Overloaded Moves . | . . . . Propulsion Burnouts . | . . . . Robots Hopped . | . . . . Potential Cave-ins . | . . . . Cave-ins Triggered . | . . . . Exploration Rate (%) 23 | 4 36 25 29 Regions Visited 3 Branch Regions 1 Pre-discovered Areas . | . . . . Known Exits Taken . | . . . . Unknown Exits Taken 3 | 1 1 1 . Scrap Searched . | . . . . Spaces Dug . | . . . . Terrain Destroyed 39 | . 4 2 33 Melee . | . . . . Projectile . | . . . . AOE 39 | . 4 2 33 Terrain Rammed . | . . . . Walls Destroyed . | . . . . Machines Disabled . | . . . . Actions | -11 -10 -10 -9 --------- Run | Yrd Mat Min Mat Total 907 | 53 392 164 298 Wait 141 | . 47 54 40 Move 651 | 46 298 102 205 Hop . | . . . . Pick Up 16 | . 11 . 5 Fast Attach 12 | 6 . 1 5 Attach 9 | . 5 . 4 Detach 4 | . 2 . 2 Swap 1 | 1 . . . Drop 10 | . 3 1 6 Fire 57 | . 24 5 28 Melee 1 | . 1 . . Ram 2 | . . . 2 Kick 3 | . 1 1 1 Crush . | . . . . Escape Stasis . | . . . . Rewire . | . . . . Trap . | . . . . Miscellaneous . | . . . . Route ------- -11/Scrapyard -10/Materials -10/Mines -9/Materials History --------- Turn | Location | Event 10 | -11/Scrapyard | Discovered new exit (range 15) 64 | -11/Scrapyard | Entered Materials 307 | -10/Materials | Build established: Mutant 539 | -10/Materials | Discovered new exit (range 15) 555 | -10/Materials | Entered Mines 690 | -10/Mines | Assisted by bots powering up and referring to "LRC-V3" 732 | -10/Mines | Discovered new exit (range 7) 739 | -10/Mines | Received a Rocket Launcher from a helpful Derelict 750 | -10/Mines | Entered Materials 750 | -9/Materials | Accompanied by 3 allies 750 | -9/Materials | Evolved 2 slots: Propulsion x2 1130 | -9/Materials | Self-destructed Last Messages --------------- Chain reaction triggered in Ion Engine. A-02 Transporter system terminally corrupted. Transport Network Coupler fried. Dropped Aluminum Leg. U-05 Engineer lays Concrete. Acquired Prototype Flight Unit. Identified Imp. Flight Unit. Faulty integration triggers energy drain (-10). U-05 Engineer builds a Wall. U-05 Engineer lays Concrete. Acquired Imp. Flight Unit. Acquired 20 matter. Slammed into U-05 Engineer. U-05 Engineer builds a Wall. Acquired Imp. Flight Unit. U-05 Engineer builds a Wall. Acquired Imp. Flight Unit. Slammed into A-02 Transporter. Destabilizing: System corrupted (+1). Acquired 17 matter. Map ----- +----------------------------------------------------+ | ??????????????????# ?? #???????????????????????? | | ??????????????????# """ #??#????????????????????? | | ??????????????????# """ +?? ????????????????????? | | ??????????????????# """ #? ????????????????????? | | ?????????????# #? #????????????????????? | | ??????????????# """ #? #?????###????????????? | | ???????????????# """ #? #???? #????????????? | | #???????????????# """ #? #??? #????????????? | | #???????????????# ## ##? #????????????? | | #???????????????# # # # #????????????? | | ################# * % # #????????????? | | = #????????????? | | / ![ # #????????????? | | "" """ * #???????????????????? | | "" """ ##### #### # ! * ##???????????????????? | | "" """ #####+######## #%###????????????????????? | | "" """ #! ! ## #=#??????????????????????? | | "" """ + ## """ + #??????????????????????? | | ^ #] [ ## "" # #??????????????????????? | | # ! ## # #??????????????????????? | | "" """ # ## # #??????????????????????? | | "" """ # ! ## [ # #??????????????????????? | | "" """ ################ #??????????????????????? | | "" """ #??????????????# #??????????????????????? | | "" """ #??????????????# #??????????????????????? | | /????###########@#??????????????????????? | | # ???# == ###????????????????????? | | "" # ???# """ =a="#????????????????????? | | "" #? ??? ""R" === # #??????????????? | | #?????? "" " ;= " """ #??????????????? | | #????# # # """ #??????????????? | | #????# # + """ ???????????????? | | #????# # # ???????????????? | | !! #????# # # "" ???????????????? | | !! #????########### #? T" #??????????????? | | +###### ##??????????????# #? "" ???????????????? | | #??????????????????# #?? ???????????????? | | #??????????????????#u #??###???????????????? | | """ #??????????????????? #????????????????????? | | """ #??????????????????? #????????????????????? | | """ #??????????????????? #????????????????????? | | #??????????????????? #????????????????????? | | #????????? ????????? ????????????????????? | | * +????????? ????????? ????????????????????? | | ######????????? ????????? ?????????????????????? | | ??????????????? ?????????????????????????????????? | | ???#######???? #?????????????????????????????????? | | #### #???? #?????????????????????????????????? | | ## #???? #?????????????????????????????????? | | ## #???? #?????????????????????????????????? | +----------------------------------------------------+ Best States ------------- Heat Dissipation 42 Energy Generation 10 Energy Capacity 250 Matter Stores 300 Matter Capacity 300 Sight Range 16 Terrain Scan Density 10 Resistance: KI 20 Resistance: TH 20 Resistance: EX 20 Resistance: EM 20 Resistance: I 20 Resistance: S 20 Resistance: P 20 Evasion (%) 55 Offensive Hacking 10 Item Schematics ----------------- None Robot Schematics ------------------ None Fabricated ------------ Nothing Repaired ---------- Nothing Studied --------- None Alien Tech Used ----------------- None Achievements -------------- None Challenges ------------ None Game ------ Seed TimingChipBroadsword Manual? 0 Play Time 00:17:50 Cumulative 5.8 hours Start 2025.12.11 @ 15:20:30 End 2025.12.11 @ 15:36:11 Sessions 1 Manual Loads 0 Difficulty Adventurer Special Mode None Game No. 12 Rogue 0 Adventurer 12 Explorer 0 Win Type - Total 0 Types 0/0/0/0/0/0/0/0/0/0 Lore% 1 Gallery% 11 Achievement% 10 Wizard Run 0 Options --------- Layout 1 ASCII 0 Keyboard 0 Movement Numpad Keybinds 0 Fullscreen 2 Font 24/Smallcaps Map View 50x35 Zoom Use 0% Tactical HUD 0 Map Filters NONE Filters NONE Steam 1 RUN: 4efb23f5-9365-4a11-94ba-1cc9678507c4